Body Name,Document Number,Service,Type of Expenditure,Invoice Date,Supplier Name,Cost to the Council (Amount Exc VAT),Month
EREWASH BOROUGH COUNCIL,5822,Revenues and Benefits         ,Software Licences             ,10-Nov-2021,IEG4 LIMITED                            ,"100,750.00",Nov-21
EREWASH BOROUGH COUNCIL,5586,Non-domestic Rates Collection ,Fees Costs and Expenses       ,27-Oct-2021,INFORM CPI LTD                          ,280.00,Nov-21
EREWASH BOROUGH COUNCIL,5653,Transport Trading Account     ,Agency Staff                  ,27-Oct-2021,INPLACE PERSONNEL SERVICES LTD          ,"2,704.00",Nov-21
EREWASH BOROUGH COUNCIL,5144,Revenues and Benefits         ,Courses and Seminars          ,26-Oct-2021,IRRV                                    ,357.00,Nov-21
EREWASH BOROUGH COUNCIL,5144,Revenues and Benefits         ,Courses and Seminars          ,26-Oct-2021,IRRV                                    ,950.00,Nov-21
EREWASH BOROUGH COUNCIL,5144,Revenues and Benefits         ,Courses and Seminars          ,26-Oct-2021,IRRV                                    ,657.00,Nov-21
EREWASH BOROUGH COUNCIL,5144,Revenues and Benefits         ,Courses and Seminars          ,26-Oct-2021,IRRV                                    ,"1,750.00",Nov-21
EREWASH BOROUGH COUNCIL,5144,Revenues and Benefits         ,Courses and Seminars          ,26-Oct-2021,IRRV                                    ,357.00,Nov-21
EREWASH BOROUGH COUNCIL,5144,Revenues and Benefits         ,Courses and Seminars          ,26-Oct-2021,IRRV                                    ,950.00,Nov-21
EREWASH BOROUGH COUNCIL,4866,Arts Development              ,Special Events                ,17-Oct-2021,REDACTED PERSONAL DATA,390.00,Nov-21
EREWASH BOROUGH COUNCIL,5867,Civic Duties Hospitality      ,Ilkeston Fair Reception       ,21-Oct-2021,JACKSONS CHIPPIE                        ,500.00,Nov-21
EREWASH BOROUGH COUNCIL,5301,Homelessness                  ,Agency Staff                  ,19-Oct-2021,JAMES ANDREWS RECRUITMENT SOLUTIONS     ,"1,480.00",Nov-21
EREWASH BOROUGH COUNCIL,5299,Homelessness                  ,Agency Staff                  ,13-Oct-2021,JAMES ANDREWS RECRUITMENT SOLUTIONS     ,740.00,Nov-21
EREWASH BOROUGH COUNCIL,5300,Homelessness                  ,Agency Staff                  ,26-Oct-2021,JAMES ANDREWS RECRUITMENT SOLUTIONS     ,"1,480.00",Nov-21
EREWASH BOROUGH COUNCIL,4703,Long Eaton Market             ,General Equipment             ,12-Oct-2021,JENSON PRESS PRINTERS                   ,289.00,Nov-21
EREWASH BOROUGH COUNCIL,4818,Food Inspection and Hygiene   ,Materials/Consumables         ,12-Oct-2021,JENSON PRESS PRINTERS                   ,259.00,Nov-21
EREWASH BOROUGH COUNCIL,4818,Food Inspection and Hygiene   ,Materials/Consumables         ,12-Oct-2021,JENSON PRESS PRINTERS                   ,259.00,Nov-21
EREWASH BOROUGH COUNCIL,5485,EBC Balance Sheet             ,Childcare Salary Sacrifice    ,05-Nov-2021,KIDDIVOUCHERS LTD                       ,333.00,Nov-21
EREWASH BOROUGH COUNCIL,5872,Front Line Support Services   ,Security                      ,31-Oct-2021,KINGS ARMOURED SECURITY SERVICES        ,705.60,Nov-21
EREWASH BOROUGH COUNCIL,5479,Commissioned Projects         ,Miscellaneous Grants          ,04-Oct-2021,KIRK HALLAM COMMUNITY HALL ASSOCIATION. ,312.50,Nov-21
EREWASH BOROUGH COUNCIL,5594,Community Grants              ,Grants and Subscriptions      ,09-Nov-2021,KIRK HALLAM COMMUNITY HALL ASSOCIATION. ,750.00,Nov-21
EREWASH BOROUGH COUNCIL,5114,ICT Support Services          ,Equipment Leasing Charge      ,25-Oct-2021,KYOCERA DOCUMENT SOLUTIONS (UK) LTD     ,"1,909.46",Nov-21
EREWASH BOROUGH COUNCIL,4961,Household Waste Collection    ,Agency Staff                  ,21-Oct-2021,QUALITY SERVICE RECRUITMENT LTD         ,0.00,Nov-21
EREWASH BOROUGH COUNCIL,4961,Kerbside Recycling Collection ,Agency Staff                  ,21-Oct-2021,QUALITY SERVICE RECRUITMENT LTD         ,530.21,Nov-21
EREWASH BOROUGH COUNCIL,4758,Household Waste Collection    ,Agency Staff                  ,14-Oct-2021,QUALITY SERVICE RECRUITMENT LTD         ,424.17,Nov-21
EREWASH BOROUGH COUNCIL,4758,Kerbside Recycling Collection ,Agency Staff                  ,14-Oct-2021,QUALITY SERVICE RECRUITMENT LTD         ,106.04,Nov-21
EREWASH BOROUGH COUNCIL,5250,Household Waste Collection    ,Agency Staff                  ,28-Oct-2021,QUALITY SERVICE RECRUITMENT LTD         ,530.21,Nov-21
EREWASH BOROUGH COUNCIL,5250,Kerbside Recycling Collection ,Agency Staff                  ,28-Oct-2021,QUALITY SERVICE RECRUITMENT LTD         ,0.00,Nov-21
EREWASH BOROUGH COUNCIL,3507,Household Waste Collection    ,Agency Staff                  ,02-Sep-2021,QUALITY SERVICE RECRUITMENT LTD         ,636.25,Nov-21
EREWASH BOROUGH COUNCIL,3507,Kerbside Recycling Collection ,Agency Staff                  ,02-Sep-2021,QUALITY SERVICE RECRUITMENT LTD         ,424.17,Nov-21
EREWASH BOROUGH COUNCIL,5308,ICT Support Services          ,Software Licences             ,21-Oct-2021,QUEST SOFTWARE INTERNATIONAL LTD        ,"1,200.00",Nov-21
EREWASH BOROUGH COUNCIL,5079,ICT Support Services          ,Software Licences             ,19-Oct-2021,QUEST SOFTWARE INTERNATIONAL LTD        ,"2,819.25",Nov-21
EREWASH BOROUGH COUNCIL,5327,Transport Trading Account     ,Agency Staff                  ,09-Aug-2021,QUESTECH RECRUITMENT LTD                ,588.00,Nov-21
EREWASH BOROUGH COUNCIL,5503,Building Control Adv & Inform ,Contracted Services           ,01-Nov-2021,RANSOMWOOD ESTATES UK LIMITED           ,531.67,Nov-21
EREWASH BOROUGH COUNCIL,5543,Building Control - Fee Earning,Agency Staff                  ,22-Oct-2021,REED SPECIALIST RECRUITMENT LTD         ,650.46,Nov-21
EREWASH BOROUGH COUNCIL,4879,Building Control - Fee Earning,Agency Staff                  ,08-Oct-2021,REED SPECIALIST RECRUITMENT LTD         ,650.46,Nov-21
EREWASH BOROUGH COUNCIL,5105,Building Control - Fee Earning,Agency Staff                  ,15-Oct-2021,REED SPECIALIST RECRUITMENT LTD         ,650.46,Nov-21
EREWASH BOROUGH COUNCIL,5609,Building Control - Fee Earning,Agency Staff                  ,29-Oct-2021,REED SPECIALIST RECRUITMENT LTD         ,650.46,Nov-21
EREWASH BOROUGH COUNCIL,4695,Cotmanhay Pavilion            ,Sanitary Services             ,06-Oct-2021,RENTOKIL INITIAL SERVICES LIMITED       ,140.00,Nov-21
EREWASH BOROUGH COUNCIL,4695,West Park Pavilion and caf�   ,Sanitary Services             ,06-Oct-2021,RENTOKIL INITIAL SERVICES LIMITED       ,90.00,Nov-21
EREWASH BOROUGH COUNCIL,4695,Merlin Way Depot              ,Sanitary Services             ,06-Oct-2021,RENTOKIL INITIAL SERVICES LIMITED       ,37.57,Nov-21
EREWASH BOROUGH COUNCIL,4695,Civic Accommodation Long Eaton,Sanitary Services             ,06-Oct-2021,RENTOKIL INITIAL SERVICES LIMITED       ,37.57,Nov-21
EREWASH BOROUGH COUNCIL,4695,Civic Accommodation Ilkeston  ,Sanitary Services             ,06-Oct-2021,RENTOKIL INITIAL SERVICES LIMITED       ,37.57,Nov-21
EREWASH BOROUGH COUNCIL,4851,Green Space                   ,Materials/Consumables         ,13-Oct-2021,RIGBY TAYLOR LTD                        ,675.50,Nov-21
EREWASH BOROUGH COUNCIL,4851,Green Space                   ,Materials/Consumables         ,13-Oct-2021,RIGBY TAYLOR LTD                        ,418.00,Nov-21
EREWASH BOROUGH COUNCIL,5118,Household Waste Collection    ,Training                      ,26-Oct-2021,ROAD HAULAGE ASSOCIATION                ,"1,350.00",Nov-21
EREWASH BOROUGH COUNCIL,5989,Household Waste Collection    ,Training                      ,26-Oct-2021,ROAD HAULAGE ASSOCIATION                ,"1,350.00",Nov-21
EREWASH BOROUGH COUNCIL,5102,Revenues and Benefits         ,Postages                      ,20-Oct-2021,ROYAL MAIL GROUP LTD.                   ,"1,529.83",Nov-21
EREWASH BOROUGH COUNCIL,4645,Revenues and Benefits         ,Postages                      ,06-Oct-2021,ROYAL MAIL GROUP LTD.                   ,341.67,Nov-21
EREWASH BOROUGH COUNCIL,4694,Registration of Electors      ,Postages                      ,08-Oct-2021,ROYAL MAIL GROUP LTD.                   ,457.60,Nov-21
EREWASH BOROUGH COUNCIL,4664,Revenues and Benefits         ,Postages                      ,06-Oct-2021,ROYAL MAIL GROUP LTD.                   ,"1,168.36",Nov-21
EREWASH BOROUGH COUNCIL,4816,Kerbside Recycling Collection ,General Publicity and Promotio,07-Oct-2021,SAFETY SIGNS & NOTICES                  ,897.00,Nov-21
EREWASH BOROUGH COUNCIL,6197,EBC Balance Sheet             ,Employee Car Loans            ,23-Nov-2021,REDACTED PERSONAL DATA,454.79,Nov-21
EREWASH BOROUGH COUNCIL,5139,Street Scene                  ,Repairs and Maintenance       ,26-Oct-2021,SCARAB SWEEPERS LTD                     ,725.00,Nov-21
EREWASH BOROUGH COUNCIL,5488,Green Space                   ,Metered Water                 ,01-Nov-2021,SCOTTISH WATER BUSINESS STREAM LIMITED  ,903.39,Nov-21
EREWASH BOROUGH COUNCIL,5488,Allotments                    ,Metered Water                 ,01-Nov-2021,SCOTTISH WATER BUSINESS STREAM LIMITED  ,"2,414.11",Nov-21
EREWASH BOROUGH COUNCIL,5488,Public Conveniences           ,Metered Water                 ,01-Nov-2021,SCOTTISH WATER BUSINESS STREAM LIMITED  ,"2,020.44",Nov-21
EREWASH BOROUGH COUNCIL,5488,Merlin Way Depot              ,Metered Water                 ,01-Nov-2021,SCOTTISH WATER BUSINESS STREAM LIMITED  ,"2,512.20",Nov-21
EREWASH BOROUGH COUNCIL,5488,Civic Accommodation Ilkeston  ,Metered Water                 ,01-Nov-2021,SCOTTISH WATER BUSINESS STREAM LIMITED  ,412.61,Nov-21
EREWASH BOROUGH COUNCIL,5107,Legal Services                ,"Stamp Duty,Search and Legal Fe",13-Oct-2021,SHAKESPEARE MARTINEAU LLP               ,425.00,Nov-21
EREWASH BOROUGH COUNCIL,4671,Street Scene                  ,Maintenance of Bus Shelters   ,12-Oct-2021,SHELTER MAINTENANCE CO                  ,593.00,Nov-21
EREWASH BOROUGH COUNCIL,4665,Street Scene                  ,Maintenance of Bus Shelters   ,12-Oct-2021,SHELTER MAINTENANCE CO                  ,"1,145.00",Nov-21
EREWASH BOROUGH COUNCIL,6040,Democratic Representation     ,Communications costs          ,28-Oct-2021,SNOW ELK PRODUCTIONS                    ,400.00,Nov-21
EREWASH BOROUGH COUNCIL,5074,Training - Personnel Only     ,Management Development Trainin,19-Oct-2021,SOLACE                                  ,350.00,Nov-21
EREWASH BOROUGH COUNCIL,5064,Basic Command Unit            ,Project Grants                ,08-Oct-2021,SOLON SECURITY LTD                      ,285.00,Nov-21
EREWASH BOROUGH COUNCIL,5263,Atmospheric Pollution         ,Nitrogen Dioxide Survey       ,08-Oct-2021,SOUTH DERBYSHIRE DISTRICT COUNCIL       ,"1,400.00",Nov-21
EREWASH BOROUGH COUNCIL,4807,Green Space                   ,Materials/Consumables         ,15-Oct-2021,STEELCRAFT FABRICATIONS                 ,680.00,Nov-21
EREWASH BOROUGH COUNCIL,5258,Green Space                   ,Materials/Consumables         ,27-Oct-2021,STEELCRAFT FABRICATIONS                 ,260.00,Nov-21
EREWASH BOROUGH COUNCIL,5254,Corporate Health and Safety   ,Water Testing (Legionella)    ,28-Oct-2021,STERILIZING SERVICES LTD                ,655.40,Nov-21
EREWASH BOROUGH COUNCIL,5097,Green Space                   ,Materials/Consumables         ,18-Oct-2021,STREETMASTER (SOUTH WALES) LTD          ,818.00,Nov-21
EREWASH BOROUGH COUNCIL,5071,Household Waste Collection    ,Repairs and Maintenance       ,21-Oct-2021,DENNIS EAGLE LTD                        ,365.78,Nov-21
EREWASH BOROUGH COUNCIL,5071,Household Waste Collection    ,Repairs and Maintenance       ,21-Oct-2021,DENNIS EAGLE LTD                        ,303.88,Nov-21
EREWASH BOROUGH COUNCIL,4574,Kerbside Recycling Collection ,Repairs and Maintenance       ,05-Oct-2021,DENNIS EAGLE LTD                        ,372.19,Nov-21
EREWASH BOROUGH COUNCIL,4577,Household Waste Collection    ,Repairs and Maintenance       ,06-Oct-2021,DENNIS EAGLE LTD                        ,294.82,Nov-21
EREWASH BOROUGH COUNCIL,4577,Household Waste Collection    ,Repairs and Maintenance       ,06-Oct-2021,DENNIS EAGLE LTD                        ,258.75,Nov-21
EREWASH BOROUGH COUNCIL,4772,Commissioned Projects         ,Miscellaneous Grants          ,11-Oct-2021,DERBY COUNTY COMMUNITY TRUST            ,585.00,Nov-21
EREWASH BOROUGH COUNCIL,6060,EBC Balance Sheet             ,Payroll Coll Acc Credit Union ,23-Nov-2021,DERBYSHIRE COMMUNITY BANK               ,330.00,Nov-21
EREWASH BOROUGH COUNCIL,5821,Environmental & Housing Serv  ,Disabled Facilities Grant     ,14-Jun-2021,DERBYSHIRE COUNTY COUNCIL...            ,"5,132.07",Nov-21
EREWASH BOROUGH COUNCIL,5817,Environmental & Housing Serv  ,Disabled Facilities Grant     ,16-Aug-2021,DERBYSHIRE COUNTY COUNCIL...            ,"5,335.59",Nov-21
EREWASH BOROUGH COUNCIL,5762,EBC Balance Sheet             ,Payroll Coll Acc Superanuation,11-Nov-2021,DERBYSHIRE COUNTY COUNCIL...            ,"117,018.02",Nov-21
EREWASH BOROUGH COUNCIL,5762,EBC Balance Sheet             ,Payroll Coll Acc Superanuation,11-Nov-2021,DERBYSHIRE COUNTY COUNCIL...            ,"83,250.00",Nov-21
EREWASH BOROUGH COUNCIL,5762,EBC Balance Sheet             ,Payroll Coll Acc - Added Years,11-Nov-2021,DERBYSHIRE COUNTY COUNCIL...            ,253.84,Nov-21
EREWASH BOROUGH COUNCIL,5550,Environmental & Housing Serv  ,Disabled Facilities Grant     ,29-Sep-2021,DERBYSHIRE COUNTY COUNCIL...            ,"2,131.00",Nov-21
EREWASH BOROUGH COUNCIL,5551,Environmental & Housing Serv  ,Disabled Facilities Grant     ,22-Sep-2021,DERBYSHIRE COUNTY COUNCIL...            ,"4,326.72",Nov-21
EREWASH BOROUGH COUNCIL,5554,Environmental & Housing Serv  ,Disabled Facilities Grant     ,06-Sep-2021,DERBYSHIRE COUNTY COUNCIL...            ,"5,011.00",Nov-21
EREWASH BOROUGH COUNCIL,5553,Environmental & Housing Serv  ,Disabled Facilities Grant     ,25-Aug-2021,DERBYSHIRE COUNTY COUNCIL...            ,"5,198.00",Nov-21
EREWASH BOROUGH COUNCIL,5549,Environmental & Housing Serv  ,Disabled Facilities Grant     ,27-Sep-2021,DERBYSHIRE COUNTY COUNCIL...            ,"5,430.99",Nov-21
EREWASH BOROUGH COUNCIL,5552,Environmental & Housing Serv  ,Disabled Facilities Grant     ,27-Sep-2021,DERBYSHIRE COUNTY COUNCIL...            ,"5,601.90",Nov-21
EREWASH BOROUGH COUNCIL,5547,Environmental & Housing Serv  ,Disabled Facilities Grant     ,11-Oct-2021,DERBYSHIRE COUNTY COUNCIL...            ,"5,989.00",Nov-21
EREWASH BOROUGH COUNCIL,5555,Environmental & Housing Serv  ,Disabled Facilities Grant     ,30-Sep-2021,DERBYSHIRE COUNTY COUNCIL...            ,"6,640.35",Nov-21
EREWASH BOROUGH COUNCIL,5548,Environmental & Housing Serv  ,Disabled Facilities Grant     ,19-Oct-2021,DERBYSHIRE COUNTY COUNCIL...            ,"6,948.10",Nov-21
EREWASH BOROUGH COUNCIL,5484,Personnel                     ,Recruitment Expenses          ,04-Nov-2021,DERBYSHIRE COUNTY COUNCIL...            ,"1,120.00",Nov-21
EREWASH BOROUGH COUNCIL,4468,Community Grants              ,Other Grants                  ,06-Oct-2021,DERBYSHIRE DISTRICTS CAB                ,"29,796.00",Nov-21
EREWASH BOROUGH COUNCIL,5328,Ilkeston Charter Fair         ,Security                      ,24-Oct-2021,EFFECTIVE SECURITY SERVICES LTD         ,"8,000.00",Nov-21
EREWASH BOROUGH COUNCIL,5328,Ilkeston Charter Fair         ,Security                      ,24-Oct-2021,EFFECTIVE SECURITY SERVICES LTD         ,"6,838.25",Nov-21
EREWASH BOROUGH COUNCIL,5604,Ilkeston Charter Fair         ,Security                      ,24-Oct-2021,EFFECTIVE SECURITY SERVICES LTD         ,"15,073.00",Nov-21
EREWASH BOROUGH COUNCIL,5496,Erewash Museum                ,Special Events                ,20-Oct-2021,ELM HOUSE SOFTWARE LTD T/A PHOTO BOOTH H,700.00,Nov-21
EREWASH BOROUGH COUNCIL,5556,Homelessness                  ,Homelessness-Lease Properties ,01-Nov-2021,EMH HOMES                               ,"1,142.62",Nov-21
EREWASH BOROUGH COUNCIL,5558,Homelessness                  ,Homelessness-Lease Properties ,01-Nov-2021,EMH HOMES                               ,"1,170.53",Nov-21
EREWASH BOROUGH COUNCIL,5557,Homelessness                  ,Homelessness-Lease Properties ,01-Nov-2021,EMH HOMES                               ,"1,240.06",Nov-21
EREWASH BOROUGH COUNCIL,5600,Homelessness                  ,Homelessness-Lease Properties ,01-Aug-2021,EMH HOMES                               ,"1,142.62",Nov-21
EREWASH BOROUGH COUNCIL,5601,Homelessness                  ,Homelessness-Lease Properties ,01-May-2021,EMH HOMES                               ,"1,142.62",Nov-21
EREWASH BOROUGH COUNCIL,5598,Homelessness                  ,Homelessness-Lease Properties ,01-Aug-2021,EMH HOMES                               ,"1,170.53",Nov-21
EREWASH BOROUGH COUNCIL,5599,Homelessness                  ,Homelessness-Lease Properties ,01-May-2021,EMH HOMES                               ,"1,170.53",Nov-21
EREWASH BOROUGH COUNCIL,5596,Homelessness                  ,Homelessness-Lease Properties ,01-Aug-2021,EMH HOMES                               ,"1,240.06",Nov-21
EREWASH BOROUGH COUNCIL,5597,Homelessness                  ,Homelessness-Lease Properties ,01-May-2021,EMH HOMES                               ,"1,240.06",Nov-21
EREWASH BOROUGH COUNCIL,6037,EBC Balance Sheet             ,Payroll Coll Acc Labour Party ,22-Nov-2021,EREWASH LABOUR GROUP                    ,512.92,Nov-21
EREWASH BOROUGH COUNCIL,5265,Green Space                   ,Repairs and Maintenance       ,26-Oct-2021,T C HARRISON GROUP LTD                  ,"1,622.35",Nov-21
EREWASH BOROUGH COUNCIL,5304,Green Space                   ,Materials/Consumables         ,30-Oct-2021,T H HEATH  CONTRACTS  LTD               ,"1,936.35",Nov-21
EREWASH BOROUGH COUNCIL,5307,Green Space                   ,Materials/Consumables         ,30-Oct-2021,T H HEATH  CONTRACTS  LTD               ,"3,118.68",Nov-21
EREWASH BOROUGH COUNCIL,5138,Green Space                   ,Contracted Services           ,12-Oct-2021,T H HEATH  CONTRACTS  LTD               ,"1,730.00",Nov-21
EREWASH BOROUGH COUNCIL,5149,Property and Estates          ,Alarms Reactive Maintenance   ,27-Oct-2021,TECSERV UK                              ,378.00,Nov-21
EREWASH BOROUGH COUNCIL,5149,Street Scene                  ,Contracted Services           ,27-Oct-2021,TECSERV UK                              ,450.00,Nov-21
EREWASH BOROUGH COUNCIL,5331,Property and Estates          ,Alarms Reactive Maintenance   ,29-Oct-2021,TECSERV UK                              ,"2,239.77",Nov-21
EREWASH BOROUGH COUNCIL,4626,Green Space                   ,Materials/Consumables         ,07-Oct-2021,THE RADAR KEY COMPANY                   ,265.00,Nov-21
EREWASH BOROUGH COUNCIL,6843,Green Space                   ,Fuel                          ,30-Nov-2021,THE RIGHT FUELCARD COMPANY LTD          ,642.71,Nov-21
EREWASH BOROUGH COUNCIL,4619,Household Waste Collection    ,Agency Staff                  ,06-Oct-2021,THORN BAKER LIMITED                     ,688.24,Nov-21
EREWASH BOROUGH COUNCIL,4619,Kerbside Recycling Collection ,Agency Staff                  ,06-Oct-2021,THORN BAKER LIMITED                     ,458.82,Nov-21
EREWASH BOROUGH COUNCIL,4132,Household Waste Collection    ,Agency Staff                  ,22-Sep-2021,THORN BAKER LIMITED                     ,949.90,Nov-21
EREWASH BOROUGH COUNCIL,4132,Kerbside Recycling Collection ,Agency Staff                  ,22-Sep-2021,THORN BAKER LIMITED                     ,633.27,Nov-21
EREWASH BOROUGH COUNCIL,3959,Household Waste Collection    ,Agency Staff                  ,15-Sep-2021,THORN BAKER LIMITED                     ,"1,613.00",Nov-21
EREWASH BOROUGH COUNCIL,3959,Kerbside Recycling Collection ,Agency Staff                  ,15-Sep-2021,THORN BAKER LIMITED                     ,"1,075.34",Nov-21
EREWASH BOROUGH COUNCIL,4358,Household Waste Collection    ,Agency Staff                  ,29-Sep-2021,THORN BAKER LIMITED                     ,"1,737.59",Nov-21
EREWASH BOROUGH COUNCIL,4358,Kerbside Recycling Collection ,Agency Staff                  ,29-Sep-2021,THORN BAKER LIMITED                     ,"1,158.40",Nov-21
EREWASH BOROUGH COUNCIL,4699,Trees Hedges Local Nature Res ,Contracted Services           ,12-Oct-2021,TOM RICHARDS TREE SERVICES              ,700.00,Nov-21
EREWASH BOROUGH COUNCIL,4701,Trees Hedges Local Nature Res ,Contracted Services           ,12-Oct-2021,TOM RICHARDS TREE SERVICES              ,750.00,Nov-21
EREWASH BOROUGH COUNCIL,4895,Merlin Way Depot              ,Electricity                   ,14-Oct-2021,TOTAL GAS & POWER LTD                   ,"1,241.87",Nov-21
EREWASH BOROUGH COUNCIL,4895,Civic Accommodation Long Eaton,Electricity                   ,14-Oct-2021,TOTAL GAS & POWER LTD                   ,"1,348.43",Nov-21
EREWASH BOROUGH COUNCIL,4895,Civic Accommodation Ilkeston  ,Electricity                   ,14-Oct-2021,TOTAL GAS & POWER LTD                   ,"1,171.31",Nov-21
EREWASH BOROUGH COUNCIL,4895,Sandiacre Friesland Sports Ctr,Electricity                   ,14-Oct-2021,TOTAL GAS & POWER LTD                   ,376.66,Nov-21
EREWASH BOROUGH COUNCIL,4895,Green Space                   ,Electricity                   ,14-Oct-2021,TOTAL GAS & POWER LTD                   ,834.11,Nov-21
EREWASH BOROUGH COUNCIL,5083,Green Space                   ,Gas                           ,13-Oct-2021,TOTAL GAS & POWER LTD                   ,254.91,Nov-21
EREWASH BOROUGH COUNCIL,5083,Civic Accommodation Long Eaton,Gas                           ,13-Oct-2021,TOTAL GAS & POWER LTD                   ,260.76,Nov-21
EREWASH BOROUGH COUNCIL,5083,Civic Accommodation Ilkeston  ,Gas                           ,13-Oct-2021,TOTAL GAS & POWER LTD                   ,520.44,Nov-21
EREWASH BOROUGH COUNCIL,4894,Toll Bar House                ,Electricity                   ,14-Oct-2021,TOTAL GAS & POWER LTD                   ,302.21,Nov-21
EREWASH BOROUGH COUNCIL,4894,Green Space                   ,Electricity                   ,14-Oct-2021,TOTAL GAS & POWER LTD                   ,622.65,Nov-21
EREWASH BOROUGH COUNCIL,4894,CCTV - Ilkeston and Long Eaton,Electricity                   ,14-Oct-2021,TOTAL GAS & POWER LTD                   ,284.50,Nov-21
EREWASH BOROUGH COUNCIL,4894,Ilkeston Market               ,Electricity                   ,14-Oct-2021,TOTAL GAS & POWER LTD                   ,307.81,Nov-21
EREWASH BOROUGH COUNCIL,4894,Car Parking                   ,Electricity                   ,14-Oct-2021,TOTAL GAS & POWER LTD                   ,560.31,Nov-21
EREWASH BOROUGH COUNCIL,4894,Shopmobility - Long Eaton     ,Electricity                   ,14-Oct-2021,TOTAL GAS & POWER LTD                   ,267.15,Nov-21
EREWASH BOROUGH COUNCIL,4894,Green Space                   ,Electricity                   ,14-Oct-2021,TOTAL GAS & POWER LTD                   ,595.49,Nov-21
EREWASH BOROUGH COUNCIL,4894,Public Conveniences           ,Electricity                   ,14-Oct-2021,TOTAL GAS & POWER LTD                   ,542.13,Nov-21
EREWASH BOROUGH COUNCIL,5297,Household Waste Collection    ,Agency Staff                  ,29-Oct-2021,TOTAL TRANSPORT COMPLIANCE              ,"1,500.00",Nov-21
EREWASH BOROUGH COUNCIL,5368,Play Areas                    ,Materials/Consumables         ,28-Oct-2021,TRADE PARTNERS INTERNATIONAL LTD        ,434.00,Nov-21
EREWASH BOROUGH COUNCIL,5136,Green Space                   ,Materials/Consumables         ,26-Oct-2021,TUDOR ENVIRONMENTAL                     ,386.16,Nov-21
EREWASH BOROUGH COUNCIL,5341,Green Space                   ,General Equipment             ,01-Nov-2021,TUDOR ENVIRONMENTAL                     ,"1,995.00",Nov-21
EREWASH BOROUGH COUNCIL,4806,Green Space                   ,Materials/Consumables         ,13-Oct-2021,TUDOR ENVIRONMENTAL                     ,417.50,Nov-21
EREWASH BOROUGH COUNCIL,5302,Homelessness                  ,Temporary Accommodation       ,08-Oct-2021,TWIN OAKS HOTEL LIMITED                 ,599.97,Nov-21
EREWASH BOROUGH COUNCIL,6065,EBC Balance Sheet             ,Payroll Coll Acc - Trade Union,23-Nov-2021,UNISON                                  ,434.30,Nov-21
EREWASH BOROUGH COUNCIL,4561,Household Waste Collection    ,Repairs and Maintenance       ,06-Oct-2021,VEHICLE WEIGHING SOLUTIONS              ,352.00,Nov-21
EREWASH BOROUGH COUNCIL,5063,Accountancy                   ,Software Licences             ,22-Oct-2021,VERSION 1 SOLUTIONS LIMITED             ,772.50,Nov-21
EREWASH BOROUGH COUNCIL,5315,Accountancy                   ,Software Licences             ,28-Oct-2021,VERSION 1 SOLUTIONS LIMITED             ,772.50,Nov-21
EREWASH BOROUGH COUNCIL,5855,Homelessness Prevention       ,Spend to Save                 ,16-Nov-2021,WHITEGATES (ILKESTON)                   ,"1,184.62",Nov-21
EREWASH BOROUGH COUNCIL,5043,Council Tax Collection        ,Fees Costs and Expenses       ,11-Oct-2021,WILKIN CHAPMAN LLP                      ,"2,609.00",Nov-21
EREWASH BOROUGH COUNCIL,5249,Household Waste Collection    ,Agency Staff                  ,23-Oct-2021,WORKCHAIN LTD                           ,"1,734.26",Nov-21
EREWASH BOROUGH COUNCIL,5249,Kerbside Recycling Collection ,Agency Staff                  ,23-Oct-2021,WORKCHAIN LTD                           ,"1,156.18",Nov-21
EREWASH BOROUGH COUNCIL,4958,Household Waste Collection    ,Agency Staff                  ,16-Oct-2021,WORKCHAIN LTD                           ,"1,594.49",Nov-21
EREWASH BOROUGH COUNCIL,4958,Kerbside Recycling Collection ,Agency Staff                  ,16-Oct-2021,WORKCHAIN LTD                           ,"1,062.99",Nov-21
EREWASH BOROUGH COUNCIL,5467,Household Waste Collection    ,Agency Staff                  ,30-Oct-2021,WORKCHAIN LTD                           ,"2,704.08",Nov-21
EREWASH BOROUGH COUNCIL,4761,Household Waste Collection    ,Agency Staff                  ,09-Oct-2021,WORKCHAIN LTD                           ,"1,734.26",Nov-21
EREWASH BOROUGH COUNCIL,4761,Kerbside Recycling Collection ,Agency Staff                  ,09-Oct-2021,WORKCHAIN LTD                           ,"1,156.18",Nov-21
EREWASH BOROUGH COUNCIL,5119,ICT Support Services          ,Data Lines                    ,26-Oct-2021,ZEN INTERNET LIMITED                    ,"1,367.01",Nov-21
EREWASH BOROUGH COUNCIL,5650,Pride In Erewash              ,Materials/Consumables         ,02-Oct-2021,MORLEY HAYES                            ,303.20,Nov-21
EREWASH BOROUGH COUNCIL,5142,Street Scene                  ,Repairs and Maintenance       ,20-Oct-2021,MOTUS COMMERCIALS                       ,497.86,Nov-21
EREWASH BOROUGH COUNCIL,5478,Insurances                    ,Uninsured Risks               ,30-Sep-2021,MUNICIPAL MUTUAL INSURANCE LTD          ,337.50,Nov-21
EREWASH BOROUGH COUNCIL,5060,Pedestrian Zones - Ilk and LE ,Reactive Maintenance          ,21-Oct-2021,N B CONSTRUCTION                        ,376.00,Nov-21
EREWASH BOROUGH COUNCIL,5141,Ilkeston Charter Fair         ,Contracted Services           ,27-Oct-2021,N B CONSTRUCTION                        ,"4,450.00",Nov-21
EREWASH BOROUGH COUNCIL,4819,Ilkeston Charter Fair         ,Contracted Services           ,15-Oct-2021,N B CONSTRUCTION                        ,"6,850.00",Nov-21
EREWASH BOROUGH COUNCIL,4578,Property and Estates          ,Repairs and Maintenance       ,06-Oct-2021,NEP ENERGY SERVICES LTD                 ,455.00,Nov-21
EREWASH BOROUGH COUNCIL,5619,Civic Accommodation Ilkeston  ,Paper Recycling and Shredding ,03-Nov-2021,NOTTINGHAM CITY COUNCIL                 ,364.00,Nov-21
EREWASH BOROUGH COUNCIL,4786,Homelessness                  ,Temporary Accommodation       ,15-Oct-2021,NOVOTEL NOTTINGHAM                      ,435.20,Nov-21
EREWASH BOROUGH COUNCIL,5611,Homelessness                  ,Temporary Accommodation       ,14-Jun-2021,NOVOTEL NOTTINGHAM                      ,642.86,Nov-21
EREWASH BOROUGH COUNCIL,5651,Homelessness                  ,Temporary Accommodation       ,23-Oct-2021,NOVOTEL NOTTINGHAM                      ,"1,169.03",Nov-21
EREWASH BOROUGH COUNCIL,5480,Housing Strategy              ,Consultants Fees              ,30-Oct-2021,OCEAN MEDIA GROUP LTD                   ,995.00,Nov-21
EREWASH BOROUGH COUNCIL,5614,Front Line Support Services   ,General Equipment             ,08-Oct-2021,ONLINE ERGONOMICS LTD                   ,598.85,Nov-21
EREWASH BOROUGH COUNCIL,5614,Front Line Support Services   ,General Equipment             ,08-Oct-2021,ONLINE ERGONOMICS LTD                   ,743.40,Nov-21
EREWASH BOROUGH COUNCIL,5464,Infec Disease & Food Poisoning,Fees Costs and Expenses       ,03-Nov-2021,OSBORNE RICHARDSON                      ,315.00,Nov-21
EREWASH BOROUGH COUNCIL,4760,Infec Disease & Food Poisoning,Fees Costs and Expenses       ,13-Oct-2021,OSBORNE RICHARDSON                      ,252.00,Nov-21
EREWASH BOROUGH COUNCIL,4959,Infec Disease & Food Poisoning,Fees Costs and Expenses       ,20-Oct-2021,OSBORNE RICHARDSON                      ,396.00,Nov-21
EREWASH BOROUGH COUNCIL,5620,Commissioned Projects         ,Fees Costs and Expenses       ,07-Oct-2021,Onsite First Aid Training Company       ,550.80,Nov-21
EREWASH BOROUGH COUNCIL,5262,Environmental Protection Act  ,Work in Default               ,13-Oct-2021,P G BOSWORTH LIMITED                    ,"1,420.00",Nov-21
EREWASH BOROUGH COUNCIL,5603,Environmental Protection Act  ,Work in Default               ,03-Nov-2021,P G BOSWORTH LIMITED                    ,570.00,Nov-21
EREWASH BOROUGH COUNCIL,5358,Green Space                   ,Path Repairs                  ,01-Nov-2021,PARKIN CONTRACTORS LTD                  ,"10,000.00",Nov-21
EREWASH BOROUGH COUNCIL,5358,Green Space                   ,Reactive Maintenance          ,01-Nov-2021,PARKIN CONTRACTORS LTD                  ,"10,000.00",Nov-21
EREWASH BOROUGH COUNCIL,5358,Closed Cemeteries             ,Planned Preventative Maintenan,01-Nov-2021,PARKIN CONTRACTORS LTD                  ,"9,000.00",Nov-21
EREWASH BOROUGH COUNCIL,5358,Car Parking                   ,Planned Preventative Maintenan,01-Nov-2021,PARKIN CONTRACTORS LTD                  ,"8,803.15",Nov-21
EREWASH BOROUGH COUNCIL,5358,Pedestrian Zones - Ilk and LE ,Reactive Maintenance          ,01-Nov-2021,PARKIN CONTRACTORS LTD                  ,"4,161.92",Nov-21
EREWASH BOROUGH COUNCIL,5579,Commissioned Projects         ,Miscellaneous Grants          ,08-Oct-2021,PARKSIDE HIGH CIC                       ,396.00,Nov-21
EREWASH BOROUGH COUNCIL,6061,EBC Balance Sheet             ,EBC Fit for Work Scheme       ,23-Nov-2021,PARKWOOD LEISURE LTD                    ,486.00,Nov-21
EREWASH BOROUGH COUNCIL,6077,Leisure Services              ,Contracted Services           ,22-Nov-2021,PARKWOOD LEISURE LTD                    ,"26,831.98",Nov-21
EREWASH BOROUGH COUNCIL,5670,Trade Waste                   ,Trade Waste                   ,10-Nov-2021,CURZON CLUB                             ,626.04,Nov-21
EREWASH BOROUGH COUNCIL,5352,Insurances (Corporate Matters),Insurance                     ,02-Nov-2021,REDACTED PERSONAL DATA,384.00,Nov-21
EREWASH BOROUGH COUNCIL,5974,Cemeteries                    ,Exc. Right Burial (and Cert)  ,18-Nov-2021,REDACTED PERSONAL DATA,695.00,Nov-21
EREWASH BOROUGH COUNCIL,6069,Development Control           ,Planning Fees                 ,23-Nov-2021,RYANS AUTO REPAIRS LIMITED              ,462.00,Nov-21
EREWASH BOROUGH COUNCIL,5130,Ilkeston Charter Fair         ,Contracted Services           ,24-Oct-2021,PB FIRE LTD                             ,"3,530.00",Nov-21
EREWASH BOROUGH COUNCIL,4854,Property and Estates          ,Reactive Maintenance          ,16-Oct-2021,PB FIRE LTD                             ,445.00,Nov-21
EREWASH BOROUGH COUNCIL,4854,Property and Estates          ,Reactive Maintenance          ,16-Oct-2021,PB FIRE LTD                             ,445.00,Nov-21
EREWASH BOROUGH COUNCIL,4793,Property and Estates          ,Repairs and Maintenance       ,15-Oct-2021,PEEL ELECTRICAL LTD                     ,396.00,Nov-21
EREWASH BOROUGH COUNCIL,4795,Property and Estates          ,Repairs and Maintenance       ,16-Oct-2021,PEEL ELECTRICAL LTD                     ,"1,574.30",Nov-21
EREWASH BOROUGH COUNCIL,5673,,,01-Nov-2021,PENHAM EXCEL LIMITED                    ,480.31,Nov-21
EREWASH BOROUGH COUNCIL,5892,,,15-Nov-2021,PENHAM EXCEL LIMITED                    ,454.37,Nov-21
EREWASH BOROUGH COUNCIL,5309,Green Space                   ,Materials/Consumables         ,27-Oct-2021,PENHAM EXCEL LIMITED                    ,300.00,Nov-21
EREWASH BOROUGH COUNCIL,4464,Homelessness                  ,Temporary Accommodation       ,01-Sep-2021,PEOPLE POTENTIAL POSSIBILITIES          ,318.00,Nov-21
EREWASH BOROUGH COUNCIL,5330,Homelessness                  ,Contracted Services           ,14-Jun-2021,PEOPLE POTENTIAL POSSIBILITIES          ,"16,419.45",Nov-21
EREWASH BOROUGH COUNCIL,5313,Planning                      ,External Property Works       ,30-Oct-2021,PER CONSULTING LTD                      ,"3,500.00",Nov-21
EREWASH BOROUGH COUNCIL,4857,ICT Support Services          ,Security                      ,18-Oct-2021,PHOENIX SOFTWARE LTD                    ,"5,904.00",Nov-21
EREWASH BOROUGH COUNCIL,4673,ICT Support Services          ,Software Licences             ,08-Oct-2021,PHOENIX SOFTWARE LTD                    ,"1,900.00",Nov-21
EREWASH BOROUGH COUNCIL,4672,ICT Support Services          ,Software Licences             ,08-Oct-2021,PHOENIX SOFTWARE LTD                    ,"2,932.26",Nov-21
EREWASH BOROUGH COUNCIL,4678,Ilkeston Charter Fair         ,Materials/Consumables         ,12-Oct-2021,PICTORIAL LTD                           ,268.00,Nov-21
EREWASH BOROUGH COUNCIL,5350,Green Space                   ,Materials/Consumables         ,28-Oct-2021,PLAYSAFETY LTD                          ,"1,465.00",Nov-21
EREWASH BOROUGH COUNCIL,5350,Green Space                   ,Materials/Consumables         ,28-Oct-2021,PLAYSAFETY LTD                          ,"1,322.00",Nov-21
EREWASH BOROUGH COUNCIL,5835,General Entertainment         ,Performing Rights Royalties   ,08-Sep-2021,PPL PRS LTD                             ,"1,218.76",Nov-21
EREWASH BOROUGH COUNCIL,5051,Green Space                   ,Materials/Consumables         ,21-Oct-2021,PROTECTIVE WEAR SUPPLIES LTD            ,474.93,Nov-21
EREWASH BOROUGH COUNCIL,5050,Green Space                   ,Materials/Consumables         ,19-Oct-2021,PROTECTIVE WEAR SUPPLIES LTD            ,815.60,Nov-21
EREWASH BOROUGH COUNCIL,4668,Green Space                   ,Materials/Consumables         ,08-Oct-2021,PROTECTIVE WEAR SUPPLIES LTD            ,256.00,Nov-21
EREWASH BOROUGH COUNCIL,5339,Economic Development          ,Contracted Services           ,01-Nov-2021,PROXIMITY FUTURES T/A ELEPHANT WIFI     ,303.33,Nov-21
EREWASH BOROUGH COUNCIL,5362,Economic Development          ,Contracted Services           ,01-Sep-2021,PROXIMITY FUTURES T/A ELEPHANT WIFI     ,303.33,Nov-21
EREWASH BOROUGH COUNCIL,6063,EBC Balance Sheet             ,Payroll Coll Acc - AVCS       ,23-Nov-2021,PRUDENTIAL                              ,"2,693.16",Nov-21
EREWASH BOROUGH COUNCIL,5131,Ilkeston Charter Fair         ,Contracted Services           ,25-Oct-2021,B&B AUDIO                               ,820.00,Nov-21
EREWASH BOROUGH COUNCIL,4809,Ilkeston Charter Fair         ,Contracted Services           ,07-Oct-2021,BANNER GROUP LIMITED                    ,411.81,Nov-21
EREWASH BOROUGH COUNCIL,5343,Street Scene                  ,General Equipment             ,08-Oct-2021,BANNER GROUP LIMITED                    ,440.40,Nov-21
EREWASH BOROUGH COUNCIL,4308,Homelessness                  ,Homelessness-Lease Properties ,26-Aug-2021,BCS CARPETS                             ,495.00,Nov-21
EREWASH BOROUGH COUNCIL,5253,ICT Support Services          ,Telephones                    ,22-Oct-2021,BRITISH TELECOMMUNICATIONS PLC          ,"1,785.13",Nov-21
EREWASH BOROUGH COUNCIL,5972,Planning                      ,External Property Works       ,18-Nov-2021,BROWNE JACOBSON                         ,"6,000.00",Nov-21
EREWASH BOROUGH COUNCIL,4802,ICT Support Services          ,Data Lines                    ,08-Oct-2021,BT GLOBAL SERVICES                      ,"8,094.66",Nov-21
EREWASH BOROUGH COUNCIL,4781,Homelessness                  ,Agency Staff                  ,13-Oct-2021,BUCKINGHAM FUTURES LIMITED              ,"1,257.43",Nov-21
EREWASH BOROUGH COUNCIL,4980,Homelessness                  ,Agency Staff                  ,20-Oct-2021,BUCKINGHAM FUTURES LIMITED              ,"1,233.07",Nov-21
EREWASH BOROUGH COUNCIL,5274,Homelessness                  ,Agency Staff                  ,27-Oct-2021,BUCKINGHAM FUTURES LIMITED              ,"1,258.00",Nov-21
EREWASH BOROUGH COUNCIL,5477,Homelessness                  ,Contracted Services           ,03-Nov-2021,BUCKINGHAM FUTURES LIMITED              ,"1,128.80",Nov-21
EREWASH BOROUGH COUNCIL,5312,Occupational Health & Welfare ,Occupational Health Service   ,01-Nov-2021,BUPA HEALTH CLINICS                     ,418.55,Nov-21
EREWASH BOROUGH COUNCIL,5540,Street Scene                  ,General Equipment             ,31-Oct-2021,BURROWS RECOVERY                        ,300.00,Nov-21
EREWASH BOROUGH COUNCIL,4435,Commissioned Projects         ,Miscellaneous Grants          ,05-Oct-2021,Balanceability Ltd.                     ,251.00,Nov-21
EREWASH BOROUGH COUNCIL,5325,Noise Control                 ,General Equipment             ,01-Nov-2021,CAMPBELL ASSOCIATES                     ,830.00,Nov-21
EREWASH BOROUGH COUNCIL,4539,Green Space                   ,Materials/Consumables         ,06-Oct-2021,CANDOR SERVICES LTD                     ,"1,290.72",Nov-21
EREWASH BOROUGH COUNCIL,4683,Green Space                   ,Materials/Consumables         ,07-Oct-2021,CANDOR SERVICES LTD                     ,"1,307.71",Nov-21
EREWASH BOROUGH COUNCIL,6565,Treasury and Bank Charges     ,Credit/Debit Card Charges     ,25-Nov-2021,CAPITA                                  ,"5,111.52",Nov-21
EREWASH BOROUGH COUNCIL,6270,Treasury and Bank Charges     ,Credit/Debit Card Charges     ,25-Nov-2021,CAPITA                                  ,"5,111.52",Nov-21
EREWASH BOROUGH COUNCIL,5462,ICT Support Services          ,General Equipment             ,01-Nov-2021,CCS MEDIA LIMITED                       ,"1,499.76",Nov-21
EREWASH BOROUGH COUNCIL,4674,ICT Support Services          ,General Equipment             ,07-Oct-2021,CCS MEDIA LIMITED                       ,641.96,Nov-21
EREWASH BOROUGH COUNCIL,5061,EBC Balance Sheet             ,Fuel Store                    ,14-Oct-2021,CERTAS ENERGY UK LIMITED T/A CARLTON FUE,"4,834.21",Nov-21
EREWASH BOROUGH COUNCIL,5764,ICT Support Services          ,Mobile Phones                 ,01-Nov-2021,CLASS AFFINITY PROJECTS LTD             ,"2,680.23",Nov-21
EREWASH BOROUGH COUNCIL,5303,Civic Transport               ,Hire Charges                  ,01-Nov-2021,CRUISE-IN-CONTROL LIMITED               ,"1,153.20",Nov-21
EREWASH BOROUGH COUNCIL,4762,Development Control           ,Work In Default               ,27-Sep-2021,CUSHMAN & WAKEFIELD DEBENHAM TIE LEUNG  ,"2,750.00",Nov-21
EREWASH BOROUGH COUNCIL,5516,Development Control           ,Work In Default               ,30-Sep-2021,CUSHMAN & WAKEFIELD DEBENHAM TIE LEUNG  ,"2,750.00",Nov-21
EREWASH BOROUGH COUNCIL,4882,Revenues and Benefits         ,General Equipment             ,19-Oct-2021,EURO BUSINESS SERVICES                  ,363.89,Nov-21
EREWASH BOROUGH COUNCIL,5069,Development Control           ,Stationery                    ,20-Oct-2021,EURO BUSINESS SERVICES                  ,547.02,Nov-21
EREWASH BOROUGH COUNCIL,5257,Household Waste Collection    ,Hire Charges                  ,24-Sep-2021,EUROMUNICIPAL LTD                       ,985.00,Nov-21
EREWASH BOROUGH COUNCIL,5257,Household Waste Collection    ,Hire Charges                  ,24-Sep-2021,EUROMUNICIPAL LTD                       ,850.00,Nov-21
EREWASH BOROUGH COUNCIL,5257,Household Waste Collection    ,Hire Charges                  ,24-Sep-2021,EUROMUNICIPAL LTD                       ,815.00,Nov-21
EREWASH BOROUGH COUNCIL,5560,Street Scene                  ,Agency Staff                  ,25-Oct-2021,EXTRA PERSONNEL LTD                     ,334.80,Nov-21
EREWASH BOROUGH COUNCIL,5115,Household Waste Collection    ,Agency Staff                  ,11-Oct-2021,EXTRA PERSONNEL LTD                     ,550.56,Nov-21
EREWASH BOROUGH COUNCIL,5559,Street Scene                  ,Agency Staff                  ,25-Oct-2021,EXTRA PERSONNEL LTD                     ,858.06,Nov-21
EREWASH BOROUGH COUNCIL,5562,Green Space                   ,Agency Staff                  ,25-Oct-2021,EXTRA PERSONNEL LTD                     ,"1,765.35",Nov-21
EREWASH BOROUGH COUNCIL,5562,Street Scene                  ,Agency Staff                  ,25-Oct-2021,EXTRA PERSONNEL LTD                     ,"1,765.34",Nov-21
EREWASH BOROUGH COUNCIL,5561,Green Space                   ,Agency Staff                  ,25-Oct-2021,EXTRA PERSONNEL LTD                     ,"1,791.72",Nov-21
EREWASH BOROUGH COUNCIL,5561,Street Scene                  ,Agency Staff                  ,25-Oct-2021,EXTRA PERSONNEL LTD                     ,"1,791.71",Nov-21
EREWASH BOROUGH COUNCIL,4706,Household Waste Collection    ,Agency Staff                  ,20-Sep-2021,EXTRA PERSONNEL LTD                     ,259.52,Nov-21
EREWASH BOROUGH COUNCIL,4706,Kerbside Recycling Collection ,Agency Staff                  ,20-Sep-2021,EXTRA PERSONNEL LTD                     ,173.01,Nov-21
EREWASH BOROUGH COUNCIL,5108,Green Space                   ,Agency Staff                  ,11-Oct-2021,EXTRA PERSONNEL LTD                     ,275.28,Nov-21
EREWASH BOROUGH COUNCIL,5108,Street Scene                  ,Agency Staff                  ,11-Oct-2021,EXTRA PERSONNEL LTD                     ,275.28,Nov-21
EREWASH BOROUGH COUNCIL,5128,Street Scene                  ,Agency Staff                  ,11-Oct-2021,EXTRA PERSONNEL LTD                     ,863.52,Nov-21
EREWASH BOROUGH COUNCIL,5111,Green Space                   ,Agency Staff                  ,11-Oct-2021,EXTRA PERSONNEL LTD                     ,"1,874.97",Nov-21
EREWASH BOROUGH COUNCIL,5111,Street Scene                  ,Agency Staff                  ,11-Oct-2021,EXTRA PERSONNEL LTD                     ,"1,874.96",Nov-21
EREWASH BOROUGH COUNCIL,5113,Green Space                   ,Agency Staff                  ,11-Oct-2021,EXTRA PERSONNEL LTD                     ,"2,326.61",Nov-21
EREWASH BOROUGH COUNCIL,5113,Street Scene                  ,Agency Staff                  ,11-Oct-2021,EXTRA PERSONNEL LTD                     ,"2,326.60",Nov-21
EREWASH BOROUGH COUNCIL,2748,Household Waste Collection    ,Agency Staff                  ,26-Jul-2021,EXTRA PERSONNEL LTD                     ,"4,689.41",Nov-21
EREWASH BOROUGH COUNCIL,2748,Kerbside Recycling Collection ,Agency Staff                  ,26-Jul-2021,EXTRA PERSONNEL LTD                     ,"3,414.62",Nov-21
EREWASH BOROUGH COUNCIL,2748,Household Waste Collection    ,Agency Staff                  ,26-Jul-2021,EXTRA PERSONNEL LTD                     ,259.52,Nov-21
EREWASH BOROUGH COUNCIL,2748,Kerbside Recycling Collection ,Agency Staff                  ,26-Jul-2021,EXTRA PERSONNEL LTD                     ,173.01,Nov-21
EREWASH BOROUGH COUNCIL,4777,Household Waste Collection    ,Agency Staff                  ,04-Oct-2021,EXTRA PERSONNEL LTD                     ,"7,507.58",Nov-21
EREWASH BOROUGH COUNCIL,4777,Kerbside Recycling Collection ,Agency Staff                  ,04-Oct-2021,EXTRA PERSONNEL LTD                     ,"5,005.06",Nov-21
EREWASH BOROUGH COUNCIL,5112,Household Waste Collection    ,Agency Staff                  ,11-Oct-2021,EXTRA PERSONNEL LTD                     ,"7,950.62",Nov-21
EREWASH BOROUGH COUNCIL,5112,Kerbside Recycling Collection ,Agency Staff                  ,11-Oct-2021,EXTRA PERSONNEL LTD                     ,"5,300.41",Nov-21
EREWASH BOROUGH COUNCIL,1361,Household Waste Collection    ,Agency Staff                  ,28-Jun-2021,EXTRA PERSONNEL LTD                     ,509.86,Nov-21
EREWASH BOROUGH COUNCIL,5777,Street Scene                  ,Agency Staff                  ,01-Nov-2021,EXTRA PERSONNEL LTD                     ,550.56,Nov-21
EREWASH BOROUGH COUNCIL,5271,Household Waste Collection    ,Agency Staff                  ,18-Oct-2021,EXTRA PERSONNEL LTD                     ,432.53,Nov-21
EREWASH BOROUGH COUNCIL,4790,Street Scene                  ,Agency Staff                  ,15-Oct-2021,EXTRA PERSONNEL LTD                     ,550.56,Nov-21
EREWASH BOROUGH COUNCIL,5269,Street Scene                  ,Agency Staff                  ,18-Oct-2021,EXTRA PERSONNEL LTD                     ,550.56,Nov-21
EREWASH BOROUGH COUNCIL,5472,Street Scene                  ,Agency Staff                  ,11-Oct-2021,EXTRA PERSONNEL LTD                     ,558.09,Nov-21
EREWASH BOROUGH COUNCIL,5473,Street Scene                  ,Agency Staff                  ,11-Oct-2021,EXTRA PERSONNEL LTD                     ,606.32,Nov-21
EREWASH BOROUGH COUNCIL,5267,Street Scene                  ,Agency Staff                  ,18-Oct-2021,EXTRA PERSONNEL LTD                     ,763.77,Nov-21
EREWASH BOROUGH COUNCIL,5270,Public Conveniences           ,Agency Staff                  ,18-Oct-2021,EXTRA PERSONNEL LTD                     ,493.12,Nov-21
EREWASH BOROUGH COUNCIL,5270,Green Space                   ,Agency Staff                  ,18-Oct-2021,EXTRA PERSONNEL LTD                     ,"1,500.74",Nov-21
EREWASH BOROUGH COUNCIL,5270,Street Scene                  ,Agency Staff                  ,18-Oct-2021,EXTRA PERSONNEL LTD                     ,"1,500.74",Nov-21
EREWASH BOROUGH COUNCIL,5268,Street Scene                  ,Agency Staff                  ,18-Oct-2021,EXTRA PERSONNEL LTD                     ,"3,161.24",Nov-21
EREWASH BOROUGH COUNCIL,5268,Green Space                   ,Agency Staff                  ,18-Oct-2021,EXTRA PERSONNEL LTD                     ,"3,161.24",Nov-21
EREWASH BOROUGH COUNCIL,5272,Household Waste Collection    ,Agency Staff                  ,18-Oct-2021,EXTRA PERSONNEL LTD                     ,"6,986.71",Nov-21
EREWASH BOROUGH COUNCIL,5272,Kerbside Recycling Collection ,Agency Staff                  ,18-Oct-2021,EXTRA PERSONNEL LTD                     ,"4,657.80",Nov-21
EREWASH BOROUGH COUNCIL,5775,Street Scene                  ,Agency Staff                  ,01-Nov-2021,EXTRA PERSONNEL LTD                     ,876.75,Nov-21
EREWASH BOROUGH COUNCIL,5784,Household Waste Collection    ,Agency Staff                  ,01-Nov-2021,EXTRA PERSONNEL LTD                     ,"1,529.58",Nov-21
EREWASH BOROUGH COUNCIL,5776,Green Space                   ,Agency Staff                  ,01-Nov-2021,EXTRA PERSONNEL LTD                     ,"1,902.81",Nov-21
EREWASH BOROUGH COUNCIL,5776,Street Scene                  ,Agency Staff                  ,01-Nov-2021,EXTRA PERSONNEL LTD                     ,"1,902.80",Nov-21
EREWASH BOROUGH COUNCIL,5778,Green Space                   ,Agency Staff                  ,01-Nov-2021,EXTRA PERSONNEL LTD                     ,"2,014.41",Nov-21
EREWASH BOROUGH COUNCIL,5778,Street Scene                  ,Agency Staff                  ,01-Nov-2021,EXTRA PERSONNEL LTD                     ,"2,014.41",Nov-21
EREWASH BOROUGH COUNCIL,5779,Household Waste Collection    ,Agency Staff                  ,01-Nov-2021,EXTRA PERSONNEL LTD                     ,"11,674.96",Nov-21
EREWASH BOROUGH COUNCIL,5563,Household Waste Collection    ,Agency Staff                  ,25-Oct-2021,EXTRA PERSONNEL LTD                     ,"7,425.40",Nov-21
EREWASH BOROUGH COUNCIL,5563,Kerbside Recycling Collection ,Agency Staff                  ,25-Oct-2021,EXTRA PERSONNEL LTD                     ,"4,950.27",Nov-21
EREWASH BOROUGH COUNCIL,5470,Economic Development          ,Project Grants                ,29-Sep-2021,FREETHS LLP                             ,255.00,Nov-21
EREWASH BOROUGH COUNCIL,5256,Pedestrian Zones - Ilk and LE ,Reactive Maintenance          ,27-Oct-2021,GEO POLLUTION TECHNOLOGIES (UK) LTD     ,"1,260.00",Nov-21
EREWASH BOROUGH COUNCIL,5826,Civic Duties Hospitality      ,Civic Events                  ,21-Oct-2021,GLADSTONE LODGE                         ,280.60,Nov-21
EREWASH BOROUGH COUNCIL,5109,Homelessness                  ,Temporary Accommodation       ,25-Oct-2021,GLOBAL VILLAGE HOTEL & RESORTS LTD      ,350.00,Nov-21
EREWASH BOROUGH COUNCIL,5078,Green Space                   ,Materials/Consumables         ,17-Oct-2021,GO TRAFFIC MANAGEMENT                   ,895.00,Nov-21
EREWASH BOROUGH COUNCIL,5018,Fireworks Display             ,Contracted Services           ,17-Oct-2021,GO TRAFFIC MANAGEMENT                   ,633.00,Nov-21
EREWASH BOROUGH COUNCIL,4669,Green Space                   ,Materials/Consumables         ,11-Oct-2021,GREEN GARDEN                            ,900.91,Nov-21
EREWASH BOROUGH COUNCIL,4669,Green Space                   ,Materials/Consumables         ,11-Oct-2021,GREEN GARDEN                            ,449.11,Nov-21
EREWASH BOROUGH COUNCIL,4652,Green Space                   ,Materials/Consumables         ,07-Oct-2021,HB INSULATIONS                          ,580.00,Nov-21
EREWASH BOROUGH COUNCIL,4644,Green Space                   ,Materials/Consumables         ,07-Oct-2021,HB INSULATIONS                          ,700.00,Nov-21
EREWASH BOROUGH COUNCIL,5120,Green Space                   ,Repairs and Maintenance       ,26-Oct-2021,HENTON & CHATTELL LTD                   ,295.10,Nov-21
EREWASH BOROUGH COUNCIL,5830,EBC Balance Sheet             ,Payroll Coll Acc - Income Tax ,17-Nov-2021,HMRC CUMBERNAULD                        ,411.60,Nov-21
EREWASH BOROUGH COUNCIL,5830,EBC Balance Sheet             ,Payroll Coll Acc National Ins ,17-Nov-2021,HMRC CUMBERNAULD                        ,514.35,Nov-21
EREWASH BOROUGH COUNCIL,5832,EBC Balance Sheet             ,Payroll Coll Acc - Income Tax ,17-Nov-2021,HMRC CUMBERNAULD                        ,"62,235.55",Nov-21
EREWASH BOROUGH COUNCIL,5832,EBC Balance Sheet             ,Payroll Coll Acc Student Loan ,17-Nov-2021,HMRC CUMBERNAULD                        ,"1,036.00",Nov-21
EREWASH BOROUGH COUNCIL,5832,EBC Balance Sheet             ,Payroll Coll Acc National Ins ,17-Nov-2021,HMRC CUMBERNAULD                        ,"95,225.44",Nov-21
EREWASH BOROUGH COUNCIL,5832,EBC Balance Sheet             ,Apprenticeship Levy           ,17-Nov-2021,HMRC CUMBERNAULD                        ,"1,860.00",Nov-21
EREWASH BOROUGH COUNCIL,5832,EBC Balance Sheet             ,Apprenticeship Levy           ,17-Nov-2021,HMRC CUMBERNAULD                        ,"1,250.00",Nov-21
EREWASH BOROUGH COUNCIL,5585,Commissioned Projects         ,General Equipment             ,29-Oct-2021,HOPE Long Eaton                         ,"3,975.00",Nov-21
EREWASH BOROUGH COUNCIL,5585,Commissioned Projects         ,General Equipment             ,29-Oct-2021,HOPE Long Eaton                         ,900.00,Nov-21
EREWASH BOROUGH COUNCIL,6085,Green Space                   ,Contracted Services           ,01-Nov-2021,ALLIANCE CONTRACTING SOLUTIONS LTD      ,"4,000.00",Nov-21
EREWASH BOROUGH COUNCIL,6085,Watercourse Maintenance       ,Contracted Services           ,01-Nov-2021,ALLIANCE CONTRACTING SOLUTIONS LTD      ,"10,000.00",Nov-21
EREWASH BOROUGH COUNCIL,6085,Property and Estates          ,External Property Works       ,01-Nov-2021,ALLIANCE CONTRACTING SOLUTIONS LTD      ,"9,002.02",Nov-21
EREWASH BOROUGH COUNCIL,6567,Treasury and Bank Charges     ,Allpay/Post Office Charges    ,30-Nov-2021,ALLPAY LIMITED                          ,968.00,Nov-21
EREWASH BOROUGH COUNCIL,4975,Property and Estates          ,Reactive Maintenance          ,21-Oct-2021,ALPHA PARTNER (MIDLANDS)  LIMITED       ,260.00,Nov-21
EREWASH BOROUGH COUNCIL,4970,Property and Estates          ,Reactive Maintenance          ,21-Oct-2021,ALPHA PARTNER (MIDLANDS)  LIMITED       ,280.00,Nov-21
EREWASH BOROUGH COUNCIL,4978,Property and Estates          ,Reactive Maintenance          ,21-Oct-2021,ALPHA PARTNER (MIDLANDS)  LIMITED       ,290.00,Nov-21
EREWASH BOROUGH COUNCIL,4976,Property and Estates          ,Reactive Maintenance          ,21-Oct-2021,ALPHA PARTNER (MIDLANDS)  LIMITED       ,295.00,Nov-21
EREWASH BOROUGH COUNCIL,4965,Property and Estates          ,Reactive Maintenance          ,21-Oct-2021,ALPHA PARTNER (MIDLANDS)  LIMITED       ,350.00,Nov-21
EREWASH BOROUGH COUNCIL,4968,Property and Estates          ,Reactive Maintenance          ,21-Oct-2021,ALPHA PARTNER (MIDLANDS)  LIMITED       ,378.00,Nov-21
EREWASH BOROUGH COUNCIL,4972,Bridge House - Long Eaton     ,Planned Preventative Maint    ,21-Oct-2021,ALPHA PARTNER (MIDLANDS)  LIMITED       ,"1,130.00",Nov-21
EREWASH BOROUGH COUNCIL,5076,Green Space                   ,Materials/Consumables         ,21-Oct-2021,AMAZON PAYMENTS UK LTD                  ,433.00,Nov-21
EREWASH BOROUGH COUNCIL,4864,Green Space                   ,Materials/Consumables         ,18-Oct-2021,AMAZON PAYMENTS UK LTD                  ,329.56,Nov-21
EREWASH BOROUGH COUNCIL,4826,ICT Support Services          ,Office Paper                  ,14-Oct-2021,ANTALIS DOCUMENT SUPPLIES               ,265.65,Nov-21
EREWASH BOROUGH COUNCIL,5260,ICT Support Services          ,Office Paper                  ,27-Oct-2021,ANTALIS DOCUMENT SUPPLIES               ,293.50,Nov-21
EREWASH BOROUGH COUNCIL,6047,Street Scene                  ,Materials/Consumables         ,27-Aug-2021,ARCO                                    ,500.80,Nov-21
EREWASH BOROUGH COUNCIL,5045,Pedestrian Zones - Ilk and LE ,PPM Mechanical and Equipment  ,19-Oct-2021,ASM CONTRACTS LTD                       ,"1,115.00",Nov-21
EREWASH BOROUGH COUNCIL,4452,Toll Bar House                ,Reactive Maintenance          ,05-Oct-2021,ATG ACCESS LTD                          ,"1,002.55",Nov-21
EREWASH BOROUGH COUNCIL,5355,Green Space                   ,Contracted Services           ,01-Nov-2021,LANGUARD LTD                            ,"3,572.79",Nov-21
EREWASH BOROUGH COUNCIL,5133,Green Space                   ,Materials/Consumables         ,24-Oct-2021,LARCH GROUNDWORK LTD                    ,700.00,Nov-21
EREWASH BOROUGH COUNCIL,5132,Green Space                   ,Materials/Consumables         ,24-Oct-2021,LARCH GROUNDWORK LTD                    ,"1,540.00",Nov-21
EREWASH BOROUGH COUNCIL,5359,Green Space                   ,Repairs and Maintenance       ,22-Oct-2021,LARKLANDS BODY & PAINT CENTRE           ,"2,589.31",Nov-21
EREWASH BOROUGH COUNCIL,5360,Household Waste Collection    ,Repairs and Maintenance       ,30-Oct-2021,LARKLANDS BODY & PAINT CENTRE           ,400.00,Nov-21
EREWASH BOROUGH COUNCIL,5103,Christmas Lights              ,Planned Preventative Maintenan,22-Oct-2021,LEISURE LITES LIMTED                    ,"9,270.00",Nov-21
EREWASH BOROUGH COUNCIL,6569,Treasury and Bank Charges     ,BACS Charges                  ,10-Nov-2021,LLOYDS BANK PLC                         ,679.18,Nov-21
EREWASH BOROUGH COUNCIL,5298,Homelessness                  ,Computer Software             ,30-Sep-2021,LOCATA (HOUSING SERVICES) LTD           ,"3,750.00",Nov-21
EREWASH BOROUGH COUNCIL,5322,Household Waste Collection    ,Tyres                         ,30-Sep-2021,LODGE TYRE COMPANY LTD                  ,"1,265.20",Nov-21
EREWASH BOROUGH COUNCIL,5322,Trade Waste                   ,Tyres                         ,30-Sep-2021,LODGE TYRE COMPANY LTD                  ,216.30,Nov-21
EREWASH BOROUGH COUNCIL,5322,Kerbside Recycling Collection ,Tyres                         ,30-Sep-2021,LODGE TYRE COMPANY LTD                  ,868.76,Nov-21
EREWASH BOROUGH COUNCIL,5322,Street Scene                  ,Tyres                         ,30-Sep-2021,LODGE TYRE COMPANY LTD                  ,512.90,Nov-21
EREWASH BOROUGH COUNCIL,5322,Green Space                   ,Tyres                         ,30-Sep-2021,LODGE TYRE COMPANY LTD                  ,922.60,Nov-21
EREWASH BOROUGH COUNCIL,5664,Accountancy                   ,Agency Staff                  ,07-Nov-2021,MACILDOWIE RECRUITMENT EXPERTISE        ,626.30,Nov-21
EREWASH BOROUGH COUNCIL,5140,Accountancy                   ,Agency Staff                  ,24-Oct-2021,MACILDOWIE RECRUITMENT EXPERTISE        ,"1,077.81",Nov-21
EREWASH BOROUGH COUNCIL,5346,Accountancy                   ,Agency Staff                  ,31-Oct-2021,MACILDOWIE RECRUITMENT EXPERTISE        ,873.90,Nov-21
EREWASH BOROUGH COUNCIL,4878,Accountancy                   ,Agency Staff                  ,17-Oct-2021,MACILDOWIE RECRUITMENT EXPERTISE        ,"1,077.81",Nov-21
EREWASH BOROUGH COUNCIL,4991,Property and Estates          ,Repairs and Maintenance       ,21-Oct-2021,MDB PLUMBING (NOTTM) LTD                ,781.43,Nov-21
EREWASH BOROUGH COUNCIL,4538,Property and Estates          ,Reactive Maintenance          ,06-Oct-2021,MDB PLUMBING (NOTTM) LTD                ,540.47,Nov-21
EREWASH BOROUGH COUNCIL,5497,Property and Estates          ,External Property Works       ,31-Oct-2021,MIDLAND ROOFING SERVICES  (DERBY) LTD   ,"17,388.17",Nov-21
